bitfinex-derivatives/quotes_BTCF0:USTF0_20250125
["timestamp","ask_amount","ask_price","bid_price","bid_amount"]
[1737845036780,0.70690896,105080.0,105070.0,0.0807]
[1737845037364,0.70690896,105080.0,105070.0,0.0717]
[1737845037571,0.70790896,105080.0,105070.0,0.0807]
[1737845038568,0.70790896,105080.0,105070.0,0.0717]
[1737845038769,0.70790896,105080.0,105070.0,0.0807]
[1737845041376,0.76449407,105080.0,105070.0,0.0807]
[1737845046083,0.71314377,105080.0,105070.0,0.0807]
[1737845046276,0.76449407,105080.0,105070.0,0.0807]
[1737845046981,0.71314377,105080.0,105070.0,0.0807]
[1737845047175,0.76449407,105080.0,105070.0,0.0807]
[1737845047985,0.71314377,105080.0,105070.0,0.0807]
[1737845048185,0.76449407,105080.0,105070.0,0.0807]
[1737845048373,0.71314377,105080.0,105070.0,0.0807]
[1737845048778,0.59939704,105080.0,105070.0,0.0807]
[1737845058091,0.71314377,105080.0,105070.0,0.0807]
[1737845059892,0.76449407,105080.0,105070.0,0.0807]
[1737845060091,0.71314377,105080.0,105070.0,0.0807]
[1737845060892,0.76449407,105080.0,105070.0,0.0807]
[1737845061093,0.71314377,105080.0,105070.0,0.0807]
[1737845061295,0.76449407,105080.0,105070.0,0.0807]
[1737845062094,0.71314377,105080.0,105070.0,0.0807]
[1737845062491,0.76449407,105080.0,105070.0,0.0807]
[1737845062692,0.71314377,105080.0,105070.0,0.0807]
[1737845063397,0.76449407,105080.0,105070.0,0.0807]
[1737845063799,0.71314377,105080.0,105070.0,0.0807]
[1737845063989,0.65655866,105080.0,105070.0,0.0807]
[1737845064997,0.70790896,105080.0,105070.0,0.0481]
[1737845066798,0.73640329,105080.0,105070.0,0.0481]
[1737845070799,0.68505299,105080.0,105070.0,0.0481]
[1737845083102,0.73640329,105080.0,105070.0,0.018]
[1737845086710,0.78775359,105080.0,105070.0,0.018]
[1737845087111,0.73640329,105080.0,105070.0,0.018]
[1737845087713,0.78775359,105080.0,105070.0,0.018]
[1737845088212,0.73640329,105080.0,105070.0,0.018]
[1737845088714,0.78775359,105080.0,105070.0,0.018]
[1737845089113,0.73640329,105080.0,105070.0,0.018]
[1737845089312,0.78775359,105080.0,105070.0,0.018]
[1737845090015,0.73640329,105080.0,105070.0,0.018]
[1737845090824,0.78775359,105080.0,105070.0,0.018]
[1737845091020,0.73640329,105080.0,105070.0,0.018]
[1737845091317,0.78775359,105080.0,105070.0,0.018]
[1737845091717,0.73640329,105080.0,105070.0,0.018]
[1737845092016,0.78775359,105080.0,105070.0,0.018]
[1737845093010,0.73640329,105080.0,105070.0,0.018]
[1737845094112,0.78775359,105080.0,105070.0,0.018]
[1737845095710,0.73640329,105080.0,105070.0,0.018]
[1737845095911,0.78775359,105080.0,105070.0,0.018]
[1737845101919,0.73640329,105080.0,105070.0,0.018]
[1737845102221,0.78775359,105080.0,105070.0,0.018]
[1737845102419,0.73640329,105080.0,105070.0,0.018]
[1737845102617,0.78775359,105080.0,105070.0,0.018]
[1737845103629,0.73640329,105080.0,105070.0,0.018]
[1737845105422,0.5654373,105080.0,105070.0,0.018]
[1737845117026,0.5654373,105080.0,105070.0,0.0496]
[1737845121533,0.5644373,105080.0,105070.0,0.0376]
[1737845122929,0.76396016,105080.0,105070.0,0.0376]
[1737845123734,0.152302,105070.0,105060.0,0.01012528]
[1737845123937,0.513102,105070.0,105060.0,0.01012528]
[1737845124833,0.51318764,105070.0,105060.0,0.01312528]
[1737845125032,0.51418764,105070.0,105060.0,0.02012528]
[1737845126928,0.51418764,105070.0,105060.0,0.05232528]
[1737845128737,0.68508131,105070.0,105060.0,0.05232528]
[1737845131141,0.73643161,105070.0,105060.0,0.05232528]
[1737845131330,0.68508131,105070.0,105060.0,0.05232528]
[1737845131532,0.69478459,105070.0,105060.0,0.05232528]
[1737845160471,0.69478459,105070.0,105060.0,0.09397672]
[1737845162276,0.69478459,105070.0,105060.0,0.08399413]
[1737845163466,0.69478459,105070.0,105060.0,0.04234269]
[1737845164671,0.69478459,105070.0,105060.0,0.08399413]
[1737845165068,0.69478459,105070.0,105060.0,0.04234269]
[1737845171575,0.68508131,105070.0,105060.0,0.44751391]
[1737845171773,0.68508131,105070.0,105060.0,0.44751179]
[1737845172083,0.17197931,105070.0,105060.0,0.80831179]
[1737845172376,0.17197931,105070.0,105060.0,0.76666287]
[1737845173480,0.11502432,105070.0,105060.0,0.76666287]
[1737845174882,0.11502432,105070.0,105060.0,0.78094287]
[1737845176784,0.00108564,105070.0,105060.0,0.78094287]
[1737845179982,0.00108564,105070.0,105060.0,0.71278287]
[1737845180181,0.00108564,105070.0,105060.0,0.78102287]
[1737845182986,0.00108564,105070.0,105060.0,0.71278287]
[1737845183183,0.00108564,105070.0,105060.0,0.88861613]
[1737845197102,0.00108564,105070.0,105060.0,0.93026505]
[1737845197399,0.00108564,105070.0,105060.0,0.88861613]
[1737845198407,0.00108564,105070.0,105060.0,0.93026505]
[1737845202211,0.19926365,105080.0,105070.0,0.2036523]
[1737845202414,0.19926365,105080.0,105070.0,0.30759588]
[1737845202602,0.19926365,105080.0,105070.0,0.66839588]
[1737845203306,0.19926365,105080.0,105070.0,0.7100448]
[1737845204309,0.19926365,105080.0,105070.0,0.7120448]
[1737845204512,0.19926365,105080.0,105070.0,0.7160448]
[1737845205813,0.19926365,105080.0,105070.0,0.7841648]
[1737845208615,0.19926365,105080.0,105070.0,0.79342659]
[1737845209113,0.56006365,105080.0,105070.0,0.43262659]
[1737845209317,0.44612497,105080.0,105070.0,0.43262659]
[1737845214916,0.44612497,105080.0,105070.0,0.44690659]
[1737845225223,0.56006365,105080.0,105070.0,0.44690659]
[1737845228125,0.56006365,105080.0,105070.0,0.40525767]
[1737845234529,0.56006365,105080.0,105070.0,0.39097767]
[1737845235126,0.56006365,105080.0,105070.0,0.40525767]
[1737845239027,0.56006365,105080.0,105070.0,0.35390737]
[1737845239435,0.56006365,105080.0,105070.0,0.40525767]
[1737845241221,0.56006365,105080.0,105070.0,0.44690659]
[1737845242434,0.56006365,105080.0,105070.0,0.39555629]
[1737845254533,0.56006365,105080.0,105070.0,0.38127629]
[1737845254739,0.56006365,105080.0,105070.0,0.39555629]
[1737845258543,0.56006365,105080.0,105070.0,0.44690659]
[1737845258942,0.56006365,105080.0,105070.0,0.39555629]
[1737845263939,0.56006365,105080.0,105070.0,0.44690659]
[1737845264939,0.56006365,105080.0,105070.0,0.39555629]
[1737845266947,0.56006365,105080.0,105070.0,0.44690659]
[1737845284253,0.56006365,105080.0,105070.0,0.40525767]
[1737845290158,0.56006365,105080.0,105070.0,0.44690659]
[1737845291353,0.56006365,105080.0,105070.0,0.37385767]
[1737845293254,0.47473868,105080.0,105070.0,0.37385767]
[1737845294459,0.47473868,105080.0,105070.0,0.35957767]
[1737845294766,0.47473868,105080.0,105070.0,0.37385767]
[1737845300466,0.47473868,105080.0,105070.0,0.41550659]
[1737845314479,0.47473868,105080.0,105070.0,0.40122659]
[1737845314867,0.47473868,105080.0,105070.0,0.41550659]
[1737845330382,0.47473868,105080.0,105070.0,0.36415629]
[1737845334589,0.47473868,105080.0,105070.0,0.34987629]
[1737845334781,0.47473868,105080.0,105070.0,0.36415629]
[1737845336089,0.3608,105080.0,105070.0,0.36415629]
[1737845342692,0.3608,105080.0,105070.0,0.41550659]
[1737845346995,0.47473868,105080.0,105070.0,0.41550659]
[1737845349390,0.56796604,105090.0,105080.0,0.152287]
[1737845349589,0.56796604,105090.0,105080.0,0.2856298]
[1737845351583,0.56796604,105090.0,105080.0,0.2866298]
[1737845352196,0.56796604,105090.0,105080.0,0.2352795]
[1737845354196,0.56796604,105090.0,105080.0,0.2866298]
[1737845354795,0.56796604,105090.0,105080.0,0.3009098]
[1737845357300,0.56796604,105090.0,105080.0,0.2495595]
[1737845358602,0.56796604,105090.0,105080.0,0.3009098]
[1737845359304,0.56796604,105090.0,105080.0,0.25926088]
[1737845360301,0.56796604,105090.0,105080.0,0.31061118]
[1737845361305,0.56796604,105090.0,105080.0,0.37869118]
[1737845363600,0.42554269,105090.0,105080.0,0.37869118]
[1737845367609,0.42554269,105090.0,105080.0,0.32734088]
[1737845367803,0.42554269,105090.0,105080.0,0.3689898]
[1737845371412,0.56796604,105090.0,105080.0,0.3689898]
[1737845373811,0.56796604,105090.0,105080.0,0.32734088]
[1737845374602,0.56796604,105090.0,105080.0,0.31306088]
[1737845374807,0.56796604,105090.0,105080.0,0.32734088]
[1737845383726,0.56796604,105090.0,105080.0,0.36733898]
[1737845385818,0.56796604,105090.0,105080.0,0.32734088]
[1737845391929,0.53636604,105090.0,105080.0,0.32734088]
[1737845392525,0.50336604,105090.0,105080.0,0.37869118]
[1737845392725,0.50336604,105090.0,105080.0,0.40939118]
[1737845394530,0.50336604,105090.0,105080.0,0.39511118]
[1737845394729,0.50336604,105090.0,105080.0,0.40939118]
[1737845394929,0.36094269,105090.0,105080.0,0.40939118]
[1737845399924,0.36094269,105090.0,105080.0,0.44938928]
[1737845400732,0.36094269,105090.0,105080.0,0.40939118]
[1737845403543,0.36094269,105090.0,105080.0,0.35804088]
[1737845406752,0.36094269,105090.0,105080.0,0.31306088]
[1737845406942,0.57601569,105090.0,105080.0,0.19363058]
[1737845407145,0.57601569,105090.0,105080.0,0.26171058]
[1737845408144,0.57601569,105090.0,105080.0,0.31306088]
[1737845408345,0.57601569,105090.0,105080.0,0.26171058]
[1737845408857,0.57601569,105090.0,105080.0,0.19363058]
[1737845409048,0.57601569,105090.0,105080.0,0.26171058]
[1737845409449,0.57601569,105090.0,105080.0,0.31306088]
[1737845410356,0.57601569,105090.0,105080.0,0.24498088]
[1737845410547,0.57601569,105090.0,105080.0,0.31306088]
[1737845410949,0.57601569,105090.0,105080.0,0.26171058]
[1737845411247,0.57601569,105090.0,105080.0,0.221367]
[1737845411442,0.62736599,105090.0,105080.0,0.221367]
[1737845411646,0.57601569,105090.0,105080.0,0.221367]
[1737845412053,0.57601569,105090.0,105080.0,0.26167859]
[1737845412957,0.58539712,105090.0,105080.0,0.26167859]
[1737845413357,0.72782047,105090.0,105080.0,0.26167859]
[1737845416158,0.72782047,105090.0,105080.0,0.31302889]
[1737845419360,0.84158339,105090.0,105080.0,0.31302889]
[1737845423664,0.84158339,105090.0,105080.0,0.24494889]
[1737845423863,0.84158339,105090.0,105080.0,0.31302889]
[1737845425564,0.83220196,105090.0,105080.0,0.31302889]
[1737845426164,0.83220196,105090.0,105080.0,0.24494889]
[1737845426364,0.83220196,105090.0,105080.0,0.31302889]
[1737845426864,0.83220196,105090.0,105080.0,0.24494889]
[1737845427065,0.83220196,105090.0,105080.0,0.31302889]
[1737845429170,0.71843904,105090.0,105080.0,0.31302889]
[1737845430476,0.71843904,105090.0,105080.0,0.26167859]
[1737845431063,0.71843904,105090.0,105080.0,0.31302889]
[1737845431264,0.71843904,105090.0,105080.0,0.26167859]
[1737845431469,0.85843271,105090.0,105080.0,0.26167859]
[1737845432967,0.82653271,105090.0,105080.0,0.26167859]
[1737845435672,0.82653271,105090.0,105080.0,0.29387859]
[1737845439864,0.82653271,105090.0,105080.0,0.22579859]
[1737845440175,0.82653271,105090.0,105080.0,0.29387859]
[1737845440873,0.65563904,105090.0,105080.0,0.22579859]
[1737845441177,0.65563904,105090.0,105080.0,0.29387859]
[1737845442275,0.65563904,105090.0,105080.0,0.253567]
[1737845449285,0.65563904,105090.0,105080.0,0.29389754]
[1737845451587,0.82653271,105090.0,105080.0,0.29389754]
[1737845458590,0.65563904,105090.0,105080.0,0.29389754]
[1737845467402,0.82653271,105090.0,105080.0,0.29389754]
[1737845472507,0.82653271,105090.0,105080.0,0.22581754]
[1737845472705,0.82653271,105090.0,105080.0,0.29389754]
[1737845480713,0.65563904,105090.0,105080.0,0.29389754]
[1737845485520,0.50336604,105090.0,105080.0,0.34524784]
[1737845485817,0.50336604,105090.0,105080.0,0.42659814]
[1737845486510,0.50336604,105090.0,105080.0,0.46728038]
[1737845490525,0.14256604,105090.0,105080.0,0.82808038]
[1737845494929,0.19944065,105090.0,105080.0,0.82808038]
[1737845505039,0.0855561,105090.0,105080.0,0.82808038]
[1737845509241,0.00014269,105090.0,105080.0,0.82808038]
[1737845535954,0.0855561,105090.0,105080.0,0.82808038]
[1737845539353,0.04273223,105090.0,105080.0,0.82808038]
[1737845543264,0.11402724,105100.0,105090.0,0.152273]
[1737845543454,0.11402724,105100.0,105090.0,0.60510554]
[1737845543655,0.11402724,105100.0,105090.0,0.64543608]
[1737845544764,0.11702724,105100.0,105090.0,0.64543608]
[1737845545264,0.11802724,105100.0,105090.0,0.64543608]
[1737845549469,0.11802724,105100.0,105090.0,0.65512435]
[1737845552068,0.11802724,105100.0,105090.0,0.68532435]
[1737845557666,0.11802724,105100.0,105090.0,0.75336435]
[1737845564566,0.11802724,105100.0,105090.0,0.71268211]
[1737845566170,0.00414269,105100.0,105090.0,0.71268211]
[1737845570674,0.00414269,105100.0,105090.0,0.75336435]
[1737845574791,0.11802724,105100.0,105090.0,0.75336435]
[1737845586789,0.11802724,105100.0,105090.0,0.71268211]
[1737845591089,0.00414269,105100.0,105090.0,0.71268211]
[1737845593100,0.00414269,105100.0,105090.0,0.75336435]
[1737845596006,0.11802724,105100.0,105090.0,0.75336435]
[1737845626336,0.11802724,105100.0,105090.0,0.70201405]
[1737845626539,0.11802724,105100.0,105090.0,0.75336435]
[1737845646755,0.11802724,105100.0,105090.0,0.70201405]
[1737845649865,0.11802724,105100.0,105090.0,0.75336435]
[1737845654171,0.11802724,105100.0,105090.0,0.71268211]
[1737845655665,0.11802724,105100.0,105090.0,0.75336435]
[1737845656165,0.11802724,105100.0,105090.0,0.71268211]
[1737845660065,0.11802724,105100.0,105090.0,0.75336435]
[1737845661568,0.11802724,105100.0,105090.0,0.71268211]
[1737845662374,0.20349173,105100.0,105090.0,0.71268211]
[1737845669577,0.20349173,105100.0,105090.0,0.75336435]
[1737845670075,0.20349173,105100.0,105090.0,0.71268211]
[1737845673085,0.20349173,105100.0,105090.0,0.75336435]
[1737845673579,0.20349173,105100.0,105090.0,0.70201405]
[1737845674084,0.20349173,105100.0,105090.0,0.66133181]
[1737845675682,0.20349173,105100.0,105090.0,0.71268211]
[1737845677378,0.20349173,105100.0,105090.0,0.75336435]
[1737845677583,0.20349173,105100.0,105090.0,0.70201405]
[1737845678481,0.20349173,105100.0,105090.0,0.75336435]
[1737845686183,0.20349173,105100.0,105090.0,0.68532435]
[1737845686389,0.20349173,105100.0,105090.0,0.70197405]
[1737845686783,0.20349173,105100.0,105090.0,0.75332435]
[1737845690384,0.20349173,105100.0,105090.0,0.71264211]
[1737845701497,0.20349173,105100.0,105090.0,0.66129181]
[1737845702089,0.20349173,105100.0,105090.0,0.70197405]
[1737845717303,0.20349173,105100.0,105090.0,0.66129181]
[1737845723428,0.20349173,105100.0,105090.0,0.71264211]
[1737845724129,0.20349173,105100.0,105090.0,0.75332435]
[1737845726231,0.20349173,105100.0,105090.0,0.71264211]
[1737845728535,0.20349173,105100.0,105090.0,0.66129181]
[1737845730732,0.20349173,105100.0,105090.0,0.71264211]
[1737845734430,0.20349173,105100.0,105090.0,0.75332435]
[1737845735735,0.20349173,105100.0,105090.0,0.71264211]
[1737845742243,0.08960718,105100.0,105090.0,0.71264211]
[1737845744831,0.08960718,105100.0,105090.0,0.75332435]
[1737845751350,0.08960718,105100.0,105090.0,0.71264211]
[1737845751851,0.20349173,105100.0,105090.0,0.71264211]
[1737845753949,0.20349173,105100.0,105090.0,0.75332435]
[1737845756944,0.20349173,105100.0,105090.0,0.71264211]
[1737845766762,0.20349173,105100.0,105090.0,0.75332435]
[1737845773168,0.20349173,105100.0,105090.0,0.71264211]
[1737845782276,0.20349173,105100.0,105090.0,0.77827241]
[1737845783279,0.20349173,105100.0,105090.0,0.81938184]
[1737845785069,0.08960718,105100.0,105090.0,0.81938184]
[1737845788371,0.08960718,105100.0,105090.0,0.91453384]
[1737845792784,0.00414269,105100.0,105090.0,0.91453384]
[1737845794592,0.00414269,105100.0,105090.0,0.90025384]
[1737845795089,0.00414269,105100.0,105090.0,0.91453384]
[1737845798885,0.19934904,105110.0,105090.0,0.91456945]
[1737845799083,0.19934904,105110.0,105100.0,0.6671089]
[1737845799284,0.19934904,105110.0,105100.0,0.81414887]
[1737845799484,0.19934904,105110.0,105100.0,0.76279857]
[1737845799786,0.19934904,105110.0,105100.0,0.85795057]
[1737845800093,0.20134904,105110.0,105100.0,0.85795057]
[1737845801090,0.20734904,105110.0,105100.0,0.85795057]
[1737845801590,0.20734904,105110.0,105100.0,0.90930087]
[1737845802090,0.20534904,105110.0,105100.0,0.90930087]
[1737845802290,0.20734904,105110.0,105100.0,0.90930087]
[1737845803197,0.20734904,105110.0,105100.0,0.86819144]
[1737845803384,0.09346449,105110.0,105100.0,0.86819144]
[1737845803690,0.09346449,105110.0,105100.0,0.90930087]
[1737845806296,0.05065139,105110.0,105100.0,0.90930087]
[1737845806686,0.25645059,105120.0,105110.0,0.152244]
[1737845806888,0.25645059,105120.0,105110.0,0.68815403]
[1737845807088,0.25645059,105120.0,105110.0,0.72848457]
[1737845807391,0.25645059,105120.0,105110.0,0.82362752]
[1737845807590,0.00014269,105120.0,105110.0,0.72848457]
[1737845808490,0.00114269,105120.0,105110.0,0.72848457]
[1737845808691,0.00114269,105120.0,105110.0,0.68737514]
[1737845810702,0.00114269,105120.0,105110.0,0.78250904]
[1737845814600,0.00114269,105120.0,105110.0,0.80619996]
[1737845817608,0.00114269,105120.0,105110.0,0.84730939]
[1737845819803,0.00114269,105120.0,105110.0,0.79595909]
[1737845822603,0.00114269,105120.0,105110.0,0.52985176]
[1737845822804,0.00114269,105120.0,105110.0,0.48952122]
[1737845822805,0.18397169,105120.0,105110.0,0.48952122]
[1737845823004,0.18397169,105120.0,105110.0,0.42156122]
[1737845823201,0.18397169,105120.0,105110.0,0.48952122]
[1737845825208,0.18397169,105120.0,105110.0,0.53063065]
[1737845825508,0.18397169,105120.0,105110.0,0.48952122]
[1737845825904,0.18397169,105120.0,105110.0,0.42156122]
[1737845826109,0.18397169,105120.0,105110.0,0.48952122]
[1737845826517,0.18397169,105120.0,105110.0,0.53063065]
[1737845826811,0.18397169,105120.0,105110.0,0.48952122]
[1737845828210,0.18397169,105120.0,105110.0,0.53084369]
[1737845829008,0.18397169,105120.0,105110.0,0.48952122]
[1737845830013,0.18397169,105120.0,105110.0,0.42156122]
[1737845830209,0.18397169,105120.0,105110.0,0.48952122]
[1737845832609,0.18397169,105120.0,105110.0,0.43817092]
[1737845836705,0.18397169,105120.0,105110.0,0.07737092]
[1737845836909,0.18397169,105120.0,105110.0,0.00941092]
[1737845837115,0.18397169,105120.0,105110.0,0.06796]
[1737845837311,0.18397169,105120.0,105110.0,0.1193103]
[1737845838004,0.18397169,105120.0,105110.0,0.06796]
[1737845838917,0.29785624,105120.0,105110.0,0.06796]
[1737845839929,0.29785624,105120.0,105110.0,0.220204]
[1737845841823,0.18397169,105120.0,105110.0,0.220204]
[1737845844723,0.29785624,105120.0,105110.0,0.220204]
[1737845847125,0.3074134,105120.0,105110.0,0.220204]
[1737845848027,0.3074134,105120.0,105110.0,0.06796]
[1737845850826,0.29785624,105120.0,105110.0,0.06796]
[1737845857228,0.29785624,105120.0,105110.0,0.1082552]
[1737845858729,0.44027959,105120.0,105110.0,0.1082552]
[1737845859525,0.44027959,105120.0,105110.0,0.2604992]
[1737845867937,0.44027959,105120.0,105110.0,0.3021286]
[1737845868239,0.32639504,105120.0,105110.0,0.3021286]
[1737845872445,0.32639504,105120.0,105110.0,0.2341686]
[1737845872646,0.32639504,105120.0,105110.0,0.3021286]
[1737845873137,0.73854534,105120.0,105110.0,0.1082552]
[1737845873338,0.73854534,105120.0,105110.0,0.1498846]
[1737845873530,0.73854534,105120.0,105110.0,0.1082552]
[1737845874442,0.73854534,105120.0,105110.0,0.06796]
[1737845874835,0.68719504,105120.0,105110.0,0.06796]
[1737845877936,0.85808871,105120.0,105110.0,0.06796]
[1737845881543,0.152244,105110.0,105100.0,0.32542251]
[1737845881746,0.152244,105110.0,105100.0,0.40735128]
[1737845882642,0.513044,105110.0,105100.0,0.18713428]
[1737845882841,0.513044,105110.0,105100.0,0.25509428]
[1737845883841,0.626895,105110.0,105100.0,0.25509428]
[1737845885742,0.6782453,105110.0,105100.0,0.04043964]
[1737845885942,0.6782453,105110.0,105100.0,0.00014269]
[1737845886142,0.7439453,105110.0,105100.0,0.00014269]
[1737845886750,0.88636865,105110.0,105100.0,0.00014269]
[1737845889544,0.77251765,105110.0,105100.0,0.00014269]
[1737845890036,0.152273,105090.0,105080.0,0.18051711]
[1737845890237,0.513073,105090.0,105080.0,0.13888185]
[1737845890644,0.513073,105090.0,105080.0,0.07092185]
[1737845890850,0.513073,105090.0,105080.0,0.19027215]
[1737845891153,0.513073,105090.0,105080.0,0.14092185]
[1737845891354,0.513073,105090.0,105080.0,0.18293117]
[1737845891553,0.513073,105090.0,105080.0,0.18693117]
[1737845892956,0.513073,105090.0,105080.0,0.13558087]
[1737845894556,0.62669161,105090.0,105080.0,0.13558087]
[1737845898358,0.513073,105090.0,105080.0,0.13558087]
[1737845899857,0.52267904,105090.0,105080.0,0.13558087]
[1737845900256,0.57402934,105090.0,105080.0,0.13558087]
[1737845903762,0.57402934,105090.0,105080.0,0.06758087]
[1737845905261,0.68764795,105090.0,105080.0,0.06758087]
[1737845919365,0.71645269,105090.0,105080.0,0.06758087]
[1737845920164,0.71645269,105090.0,105080.0,0.00608087]
[1737845920365,0.74945269,105090.0,105080.0,0.00608087]
[1737845920565,0.78085269,105090.0,105080.0,0.00608087]
[1737845922480,0.80932301,105090.0,105080.0,0.00608087]
[1737845924576,0.152287,105080.0,105070.0,0.00014269]
[1737845924768,0.152287,105080.0,105060.0,0.07748407]
[1737845924769,0.152302,105070.0,105060.0,0.07748407]
[1737845924969,0.2036523,105070.0,105060.0,0.07748407]
[1737845925881,0.2036523,105070.0,105060.0,0.00948407]
[1737845926071,0.0513503,105070.0,105050.0,0.56462099]
[1737845926378,0.513116,105060.0,105050.0,0.35372729]
[1737845926579,0.513116,105060.0,105050.0,0.15979816]
[1737845927272,0.513116,105060.0,105050.0,0.12907967]
[1737845927675,0.513116,105060.0,105050.0,0.13807967]
[1737845928382,0.514116,105060.0,105050.0,0.14707967]
[1737845928580,0.5654663,105060.0,105050.0,0.14707967]
[1737845929380,0.5654663,105060.0,105050.0,0.09572937]
[1737845930878,0.5654663,105060.0,105050.0,0.02772937]
[1737845931180,0.76482532,105060.0,105050.0,0.01814269]
[1737845931376,0.79772532,105060.0,105050.0,0.01814269]
[1737845932782,0.80717821,105060.0,105050.0,0.01814269]
[1737845932983,0.80617821,105060.0,105050.0,0.01214269]
[1737845933183,0.80617821,105060.0,105050.0,0.01014269]
[1737845935185,1.16697821,105060.0,105050.0,0.01014269]
[1737845935981,1.21832851,105060.0,105050.0,0.01014269]
[1737845936583,1.16697821,105060.0,105050.0,0.01014269]
[1737845938480,1.08158499,105060.0,105050.0,0.01014269]
[1737845941489,0.9878818,105060.0,105050.0,0.01014269]
[1737845941685,0.9878818,105060.0,105050.0,0.21382399]
[1737845941992,0.2662818,105060.0,105050.0,0.57462399]
[1737845942186,0.1139658,105060.0,105050.0,0.57462399]
[1737845944488,0.23760057,105070.0,105050.0,0.57462399]
[1737845944691,0.23760057,105070.0,105060.0,0.1475503]
[1737845944999,0.23760057,105070.0,105060.0,0.1989006]
[1737845945494,0.23760057,105070.0,105060.0,0.3512166]
[1737845946692,0.23760057,105070.0,105060.0,0.4234566]
[1737845947195,0.23760057,105070.0,105060.0,0.4254566]
[1737845948495,0.152308,105070.0,105060.0,0.4254566]
[1737845949994,0.56020106,105080.0,105060.0,0.4254566]
[1737845950199,0.71249106,105080.0,105070.0,0.0513503]
[1737845950888,0.71249106,105080.0,105070.0,0.152302]
[1737845951094,0.62719849,105080.0,105070.0,0.152302]
[1737845951690,0.62719849,105080.0,105070.0,0.153302]
[1737845952797,0.47490849,105080.0,105070.0,0.153302]
[1737845952995,0.11410849,105080.0,105070.0,0.5654523]
[1737845953193,0.11410849,105080.0,105070.0,0.516102]
[1737845953597,0.11410849,105080.0,105070.0,0.5674523]
[1737845953892,0.11410849,105080.0,105070.0,0.5664523]
[1737845954089,0.11410849,105080.0,105070.0,0.5704523]
[1737845954288,0.19950624,105080.0,105070.0,0.5704523]
[1737845958497,0.00014269,105080.0,105070.0,0.5704523]
[1737845960898,0.19936355,105090.0,105080.0,0.152287]
[1737845961103,0.19936355,105090.0,105080.0,0.2994373]
[1737845962297,0.08539775,105090.0,105080.0,0.2994373]
[1737845962504,0.08539775,105090.0,105080.0,0.6602373]
[1737845963208,0.08539775,105090.0,105080.0,0.6612373]
[1737845963403,0.08539775,105090.0,105080.0,0.7135876]
[1737845963604,0.11553658,105100.0,105090.0,0.152273]
[1737845963908,0.11553658,105100.0,105090.0,0.6326633]
[1737845964909,0.11753658,105100.0,105090.0,0.6326633]
[1737845966300,0.00357078,105100.0,105090.0,0.6326633]
[1737845968712,0.00357078,105100.0,105090.0,0.6421067]
[1737845969508,0.00357078,105100.0,105090.0,0.5907564]
[1737845972410,0.15582878,105100.0,105090.0,0.5907564]
[1737845977016,0.15582878,105100.0,105090.0,0.5225164]
[1737845977219,0.15582878,105100.0,105090.0,0.5906764]
[1737845983814,0.26979458,105100.0,105090.0,0.5906764]
[1737845989525,0.26979458,105100.0,105090.0,0.63093223]
[1737845990120,0.26979458,105100.0,105090.0,0.27013223]
[1737845990320,0.26836649,105100.0,105090.0,0.5906764]
[1737845990630,0.26836649,105100.0,105090.0,0.63093716]
[1737845991230,0.26636649,105100.0,105090.0,0.63193716]
[1737845991435,0.26636649,105100.0,105090.0,0.63293716]
[1737845993028,0.40882374,105100.0,105090.0,0.63293716]
[1737845994720,0.40882374,105100.0,105090.0,0.68428746]
[1737845994920,0.40882374,105100.0,105090.0,0.63293716]
[1737845995631,0.29485794,105100.0,105090.0,0.63293716]
[1737845997618,0.29485794,105100.0,105090.0,0.48066416]
[1737845997825,0.29485794,105100.0,105090.0,0.11982416]
[1737845998134,0.34620824,105100.0,105090.0,0.11982416]
[1737845998819,0.70700824,105100.0,105090.0,0.04226076]
[1737845999019,0.70700824,105100.0,105090.0,0.002]
[1737846000325,0.75835854,105100.0,105090.0,0.002]
[1737846000525,0.75835854,105100.0,105070.0,0.51323569]
[1737846000526,0.152287,105080.0,105070.0,0.00014269]
[1737846000726,0.5644373,105080.0,105070.0,0.00014269]
[1737846001933,0.5644373,105080.0,105070.0,0.01014269]
[1737846002933,0.70689455,105080.0,105070.0,0.01014269]
[1737846005236,0.82082355,105080.0,105070.0,0.01014269]
[1737846005539,0.6783663,105080.0,105070.0,0.01014269]
[1737846005734,0.3175663,105080.0,105070.0,0.01014269]
[1737846005930,0.6783663,105080.0,105070.0,0.01014269]
[1737846006330,0.627016,105080.0,105070.0,0.01014269]
[1737846006539,0.627016,105080.0,105070.0,0.16244469]
[1737846006835,0.627016,105080.0,105070.0,0.21379499]
[1737846007137,0.627016,105080.0,105070.0,0.16244469]
[1737846007339,0.627016,105080.0,105070.0,0.21379499]
[1737846008535,0.113929,105080.0,105070.0,0.57459499]
[1737846010138,0.113929,105080.0,105070.0,0.70694151]
[1737846010335,0.14245725,105090.0,105070.0,0.60900919]
[1737846010526,0.14245725,105090.0,105080.0,0.6811876]
[1737846010831,0.53183636,105100.0,105090.0,0.152273]
[1737846010832,0.17103636,105100.0,105090.0,0.152273]
[1737846011031,0.17103636,105100.0,105090.0,0.3029233]
[1737846011631,0.00014269,105100.0,105090.0,0.6637233]
[1737846012230,0.00014269,105100.0,105090.0,0.6647233]
[1737846012548,0.00014269,105100.0,105090.0,0.6657233]
[1737846015143,0.00014269,105100.0,105090.0,0.6800033]
[1737846015335,0.00014269,105100.0,105090.0,0.6657233]
[1737846015534,0.00014269,105100.0,105090.0,0.6800033]
[1737846015735,0.00014269,105100.0,105090.0,0.6657233]
[1737846015929,0.00014269,105100.0,105090.0,0.6800033]
[1737846016638,0.00014269,105100.0,105090.0,0.6657233]
[1737846016842,0.00014269,105100.0,105090.0,0.6800033]
[1737846017234,0.00014269,105100.0,105090.0,0.6657233]
[1737846017428,0.00014269,105100.0,105090.0,0.68956829]
[1737846017737,0.00014269,105100.0,105090.0,0.67528829]
[1737846018138,0.00014269,105100.0,105090.0,0.68956829]
[1737846018338,0.00014269,105100.0,105090.0,0.67528829]
[1737846019141,0.00014269,105100.0,105090.0,0.68956829]
[1737846019342,0.00014269,105100.0,105090.0,0.67528829]
[1737846019639,0.00014269,105100.0,105090.0,0.68956829]
[1737846019844,0.00014269,105100.0,105090.0,0.67528829]
[1737846020050,0.00014269,105100.0,105090.0,0.68956829]
[1737846020340,0.00014269,105100.0,105090.0,0.62393799]
[1737846020538,0.00014269,105100.0,105090.0,0.67528829]
[1737846020743,0.00014269,105100.0,105090.0,0.68956829]
[1737846021340,0.00014269,105100.0,105090.0,0.67528829]
[1737846021530,0.00014269,105100.0,105090.0,0.63821799]
[1737846021735,0.00014269,105100.0,105090.0,0.62393799]
[1737846022739,0.00014269,105100.0,105090.0,0.63821799]
[1737846023443,0.00014269,105100.0,105090.0,0.68956829]
[1737846027653,0.513034,105120.0,105090.0,0.58864559]
[1737846027852,0.513034,105120.0,105110.0,0.0513503]
[1737846028755,0.518034,105120.0,105110.0,0.0513503]
[1737846029655,0.519034,105120.0,105110.0,0.0513503]
[1737846030851,0.519034,105120.0,105110.0,0.2035943]